bitfinex-derivatives/quotes_ETHF0:USTF0_20260123
["timestamp","ask_amount","ask_price","bid_price","bid_amount"]
[1769189819658,0.48323749,3018.5,3014.4,5.505]
[1769189819864,0.48323749,3018.0,3015.4,0.48356443]
[1769189820363,5.162,3017.9,3015.4,0.48356443]
[1769189820563,3.318,3018.2,3016.5,0.48356443]
[1769189820868,0.16939134,3019.3,3016.5,0.48763626]
[1769189821169,0.00497215,3017.7,3016.5,0.48763626]
[1769189821966,0.00497215,3017.7,3016.5,0.00407183]
[1769189822166,0.90539081,3017.6,3015.2,0.91108641]
[1769189822362,5.162,3017.5,3015.2,1.07711641]
[1769189822564,5.162,3017.5,3015.4,0.91108641]
[1769189822761,0.90539081,3017.4,3014.7,0.91108641]
[1769189822967,0.90539081,3017.2,3014.7,0.91108641]
[1769189823262,1.844,3017.1,3014.7,0.91519882]
[1769189823468,5.162,3017.0,3014.7,0.91519882]
[1769189823872,0.00417028,3017.1,3014.7,0.91519882]
[1769189824064,5.162,3017.0,3014.7,0.91519882]
[1769189824268,0.00497215,3016.2,3014.7,0.91519882]
[1769189824668,0.00497215,3016.2,3014.7,0.00411241]
[1769189825062,0.91036296,3016.2,3014.7,0.00411241]
[1769189825477,0.91036296,3016.2,3013.4,0.91108641]
[1769189825669,0.91036296,3016.2,3013.5,0.51922252]
[1769189825869,0.91036296,3016.2,3013.4,0.91108641]
[1769189825870,0.90539081,3016.2,3013.7,0.91108641]
[1769189826070,6.06839081,3016.1,3013.9,0.91108641]
[1769189826373,0.90539081,3016.0,3014.0,0.51922252]
[1769189826572,0.97049552,3015.8,3014.1,0.51922252]
[1769189826773,0.97049552,3015.8,3014.2,0.51922252]
[1769189826971,0.97049552,3015.6,3014.3,0.51922252]
[1769189827276,0.00497215,3015.3,3013.9,0.00290776]
[1769189827479,0.97546767,3015.3,3014.0,0.51924379]
[1769189827675,0.97546767,3015.3,3013.9,0.00290776]
[1769189827676,28.17546767,3015.3,3013.9,0.00290776]
[1769189828379,0.97546767,3015.3,3013.9,0.00290776]
[1769189828670,5.163,3015.2,3013.9,0.00290776]
[1769189828876,0.97546767,3015.3,3013.9,0.00290776]
[1769189829075,5.163,3015.2,3013.9,0.00290776]
[1769189829277,0.97546767,3015.3,3013.9,0.00290776]
[1769189829476,5.163,3015.2,3013.9,0.00290776]
[1769189829672,0.97546767,3015.3,3013.9,0.00290776]
[1769189829875,3.319,3015.2,3013.9,0.00290776]
[1769189830071,5.163,3015.2,3013.9,0.00290776]
[1769189830471,5.163,3015.2,3014.0,1.00697666]
[1769189830675,5.163,3015.2,3013.9,0.00290776]
[1769189830881,5.163,3015.2,3014.0,1.0289867]
[1769189831170,0.00497215,3015.3,3013.9,0.00290776]
[1769189831171,0.97546767,3015.3,3013.9,0.00290776]
[1769189831375,5.164,3015.2,3013.9,0.00290776]
[1769189831572,5.164,3015.2,3014.0,1.02860876]
[1769189831771,5.164,3015.2,3013.9,0.00290776]
[1769189831973,0.97546767,3015.3,3013.9,0.00290776]
[1769189832173,23.78130709,3014.1,3014.0,1.01782043]
[1769189832374,5.164,3015.2,3013.9,0.00290776]
[1769189832574,0.00497215,3015.3,3013.9,0.00290776]
[1769189832776,5.165,3015.2,3014.0,1.01710376]
[1769189832978,5.165,3015.2,3014.1,1.01710376]
[1769189833277,0.0039228,3015.2,3013.9,1.14284657]
[1769189833582,0.0039228,3015.2,3014.0,1.00103405]
[1769189833785,5.165,3015.1,3014.1,1.00103405]
[1769189833975,0.0039228,3015.2,3014.2,1.00103405]
[1769189834280,3.3239228,3015.2,3014.3,0.99612452]
[1769189834477,3.3239228,3015.2,3014.4,0.99612452]
[1769189834677,3.3239228,3015.2,3014.5,0.99612452]
[1769189834880,3.3239228,3015.2,3013.9,1.14284657]
[1769189835080,0.0039228,3015.2,3014.0,0.99681195]
[1769189835281,5.165,3015.1,3014.1,0.99681195]
[1769189835481,5.165,3015.1,3013.9,0.00290776]
[1769189836082,6.32472821,3015.1,3013.9,0.00290776]
[1769189836278,0.0039228,3015.2,3013.9,0.00290776]
[1769189836679,0.0039228,3015.2,3014.0,2.11417851]
[1769189836875,0.0039228,3015.2,3014.1,0.9742397]
[1769189837079,0.0039228,3015.2,3014.2,0.9742397]
[1769189837278,0.0039228,3015.2,3014.3,0.9742397]
[1769189837482,3.32,3015.7,3014.4,2.11417851]
[1769189837680,1.16148032,3016.9,3014.6,1.37596527]
[1769189837983,1.15439227,3017.5,3014.9,0.2903128]
[1769189838188,1.845,3017.0,3015.3,1.43025161]
[1769189838478,1.84919533,3017.0,3015.7,0.166]
[1769189838683,1.84919533,3017.0,3015.8,0.9742397]
[1769189838876,1.84919533,3017.0,3015.9,0.9742397]
[1769189839076,0.00419533,3017.0,3015.9,0.16599]
[1769189839276,0.00419533,3017.0,3016.0,2.61504907]
[1769189839476,0.00419533,3017.0,3016.1,2.62002122]
[1769189839686,0.00419533,3017.0,3015.5,1.13993881]
[1769189839883,0.97049552,3016.8,3014.9,1.13993881]
[1769189840084,0.97049552,3016.8,3014.7,1.7249064]
[1769189840085,1.13643552,3016.8,3015.0,0.95769312]
[1769189840285,5.165,3016.7,3015.1,0.95772991]
[1769189840584,0.97049552,3016.6,3014.7,1.13993881]
[1769189840784,0.97049552,3016.6,3014.7,0.00319422]
[1769189840978,0.97049552,3016.3,3014.2,1.13993881]
[1769189841184,0.97049552,3016.1,3014.3,0.94930755]
[1769189841382,0.97049552,3016.1,3014.4,0.94930755]
[1769189841585,0.00497215,3015.6,3014.5,0.94930755]
[1769189841885,5.165,3015.5,3014.3,1.13993881]
[1769189842086,5.165,3015.5,3014.3,0.00367987]
[1769189842284,0.97049552,3015.4,3013.4,5.21087968]
[1769189842482,0.97049552,3015.1,3012.7,1.01988535]
[1769189842685,0.97049552,3015.1,3012.4,1.60967356]
[1769189842882,0.97049552,3015.1,3011.6,5.90121732]
[1769189843088,1.37893812,3014.9,3011.8,0.16621]
[1769189843285,1.37893812,3014.9,3011.8,0.0023867]
[1769189843584,3.32,3014.8,3011.8,4.0954382]
[1769189843783,0.00302623,3014.8,3013.2,0.16614]
[1769189843983,0.00302623,3014.8,3012.7,4.0930515]
[1769189844189,3.321,3015.7,3013.7,0.16611]
[1769189844493,1.37403181,3016.2,3013.7,0.00497215]
[1769189844684,1.37403181,3016.2,3013.8,0.1515355]
[1769189844890,5.166,3016.1,3013.8,0.1515355]
[1769189845186,5.16974762,3016.1,3014.1,0.16609]
[1769189845489,1.37335332,3016.0,3014.1,0.00258291]
[1769189845691,3.321,3015.9,3014.1,0.00258291]
[1769189845991,1.36826819,3015.8,3013.3,4.0930515]
[1769189846181,1.36826819,3014.9,3012.0,0.25848916]
[1769189846387,6.53426819,3014.8,3012.0,0.25848916]
[1769189846586,1.36826819,3014.7,3012.3,0.16619]
[1769189846892,5.166,3014.6,3012.4,0.47525308]
[1769189847192,21.97276534,3013.5,3012.5,0.16617]
[1769189847384,0.00497215,3013.8,3012.5,0.16617]
[1769189847989,1.845,3013.7,3012.5,0.16617]
[1769189848388,1.84844234,3013.7,3012.5,0.16617]
[1769189848695,1.84844234,3013.7,3012.4,0.00237596]
[1769189848895,1.845,3013.6,3012.4,0.00237596]
[1769189850093,0.00344234,3013.7,3012.4,0.00237596]
[1769189850293,0.00344234,3013.7,3012.4,0.48003155]
[1769189850483,0.00344234,3013.7,3012.5,0.47765559]
[1769189850686,0.16603,3015.3,3012.4,0.00237596]
[1769189850687,0.16603,3015.2,3012.9,0.16615]
[1769189850887,5.166,3015.1,3012.9,0.16615]
[1769189851293,33.71670128,3015.1,3012.9,0.16615]
[1769189851491,33.88274128,3015.1,3012.9,0.16615]
[1769189851690,33.88529049,3015.1,3013.0,0.48047746]
[1769189851893,6.76199407,3015.0,3013.1,0.48047746]
[1769189852092,1.59599407,3014.9,3013.2,0.48047746]
[1769189852295,1.59599407,3014.9,3013.3,0.48047746]
[1769189852595,5.166,3014.8,3013.4,0.48047746]
[1769189852795,5.166,3014.8,3013.5,0.48047746]
[1769189852988,1.59599407,3014.9,3013.6,0.48047746]
[1769189853188,3.321,3014.8,3013.7,0.48047746]
[1769189853495,1.845,3014.7,3013.8,0.48047746]
[1769189853696,0.00254921,3015.1,3013.9,0.48047746]
[1769189853996,1.845,3015.0,3014.0,1.34290997]
[1769189854189,1.845,3015.0,3013.6,2.31514865]
[1769189854389,1.845,3014.9,3013.7,2.31514865]
[1769189854593,0.00254921,3015.1,3013.5,2.31514865]
[1769189854896,5.167,3015.0,3013.9,0.00497215]
[1769189855097,1.845,3014.9,3013.9,0.00497215]
[1769189855693,1.845,3014.8,3013.9,0.00497215]
[1769189855896,3.322,3015.0,3013.9,0.00497215]
[1769189855897,1.845,3015.0,3013.9,0.00497215]
[1769189856097,1.845,3015.0,3014.1,2.31514865]
[1769189856397,0.00254921,3015.1,3014.2,2.31514865]
[1769189856604,0.00254921,3015.1,3014.3,2.48122865]
[1769189856795,3.322,3015.8,3014.5,2.31514865]
[1769189857100,3.322,3015.8,3014.6,2.31514865]
[1769189857287,3.322,3015.8,3013.9,4.09802365]
[1769189857288,0.16603,3015.1,3013.9,4.09802365]
[1769189857486,1.845,3015.0,3013.9,0.00497215]
[1769189857696,1.84774488,3015.0,3013.9,0.00869919]
[1769189857896,0.00274488,3015.0,3013.9,1.76714279]
[1769189858092,1.79401387,3016.9,3013.9,1.76714279]
[1769189858093,0.10029273,3016.9,3014.4,0.86691694]
[1769189858296,5.166,3016.8,3014.7,1.7584436]
[1769189858498,5.166,3016.8,3014.7,2.62536054]
[1769189858700,27.2,3016.7,3014.7,2.62536054]
[1769189858995,27.2,3016.7,3014.8,1.76541914]
[1769189859300,27.2,3016.7,3015.4,0.00497215]
[1769189859301,1.845,3016.6,3015.4,0.00497215]
[1769189859897,0.00497215,3016.3,3014.8,2.63233608]
[1769189860194,0.00497215,3016.3,3014.9,1.80143761]
[1769189860392,0.00497215,3016.3,3015.2,1.80143761]
[1769189862095,0.00497215,3016.3,3014.7,0.86691694]
[1769189862304,0.00497215,3016.3,3014.8,0.86691694]
[1769189862895,0.00497215,3016.3,3014.8,1.03296694]
[1769189864298,0.00497215,3016.3,3014.8,0.16605]
[1769189865088,0.00497215,3016.3,3014.9,0.16604]
[1769189865295,0.00497215,3016.3,3015.2,0.16603]
[1769189865491,0.00382055,3016.7,3015.5,0.16601]
[1769189865691,0.00382055,3016.7,3015.3,0.00497215]
[1769189866295,0.00382055,3016.7,3015.4,0.43534542]
[1769189866493,0.00382055,3016.7,3015.5,0.43534542]
[1769189866690,0.00382055,3016.7,3015.6,0.43534542]
[1769189866900,0.00382055,3016.7,3015.7,1.30226236]
[1769189867098,0.00382055,3016.7,3015.8,0.43534542]
[1769189867390,0.00382055,3016.7,3015.9,0.43534542]
[1769189867590,0.00382055,3016.7,3016.0,0.43534542]
[1769189867898,0.00382055,3016.7,3016.1,0.43534542]
[1769189868097,0.00382055,3016.7,3016.2,0.43534542]
[1769189868295,0.00382055,3016.7,3016.3,0.43534542]
[1769189868496,1.59599407,3017.8,3016.4,0.43534542]
[1769189868702,1.59599407,3017.8,3016.5,0.43534542]
[1769189868703,5.166,3017.7,3016.5,0.43534542]
[1769189868896,5.166,3017.7,3016.6,0.43534542]
[1769189869205,1.845,3017.6,3016.7,0.43458408]
[1769189869405,1.845,3017.6,3016.8,0.43458408]
[1769189869599,1.84904684,3017.6,3016.8,0.00497215]
[1769189869804,1.84904684,3017.6,3016.1,0.00359923]
[1769189869805,0.00497215,3017.5,3016.1,0.00359923]
[1769189870098,0.00497215,3017.5,3016.2,0.43455719]
[1769189870406,0.00497215,3017.5,3016.3,0.43455719]
[1769189870604,0.00497215,3017.5,3016.4,0.43455719]
[1769189870797,0.00497215,3017.5,3016.5,0.43455719]
[1769189870996,0.00497215,3017.5,3016.6,0.43455719]
[1769189871301,0.00497215,3017.5,3016.7,0.43455719]
[1769189871502,0.00497215,3017.5,3016.8,0.43455719]
[1769189871799,0.00497215,3017.5,3016.1,0.16957923]
[1769189872103,0.00497215,3017.5,3016.2,0.43395177]
[1769189872303,0.00497215,3017.5,3016.3,0.43395177]
[1769189872505,0.00497215,3017.5,3016.4,0.43395177]
[1769189872705,0.00497215,3017.5,3016.5,0.43395177]
[1769189872904,0.00497215,3017.5,3016.6,0.43395177]
[1769189873203,0.00497215,3017.5,3016.1,0.00359923]
[1769189873503,0.00497215,3017.5,3016.2,0.43364083]
[1769189873809,1.845,3017.4,3016.3,0.43364083]
[1769189874005,1.845,3017.4,3016.1,0.00359923]
[1769189874301,1.59599407,3017.3,3015.2,0.86691694]
[1769189874602,1.59599407,3016.6,3014.3,0.16608]
[1769189874800,4.91599407,3016.5,3014.3,0.16608]
[1769189875101,3.43999407,3016.4,3014.3,1.69781273]
[1769189875302,1.844,3016.4,3014.5,1.69780273]
[1769189875697,1.844,3016.4,3014.5,0.16607]
[1769189875900,1.59599407,3016.3,3014.3,0.00328143]
[1769189876701,0.00497215,3015.6,3014.3,0.00328143]
[1769189876905,1.844,3015.5,3014.3,0.00328143]
[1769189877106,0.00497215,3015.6,3014.3,0.00328143]
[1769189878203,1.59599407,3016.5,3014.3,1.53501416]
[1769189878504,4.09504185,3018.0,3014.7,0.16605]
[1769189878505,3.44099407,3016.7,3014.7,0.16605]
[1769189878806,1.845,3016.6,3014.7,0.16605]
[1769189879012,1.59599407,3016.5,3014.7,0.16605]
[1769189879305,1.845,3016.6,3014.7,0.16605]
[1769189879606,1.845,3016.7,3014.7,0.16605]
[1769189880505,1.59599407,3017.1,3014.7,1.53173273]
[1769189880703,1.845,3017.0,3015.2,0.16603]
[1769189881111,1.845,3017.0,3014.7,1.53173273]
[1769189881112,1.59599407,3016.9,3014.7,2.39864967]
[1769189881407,3.48592,3017.2,3014.7,2.39864967]
[1769189881408,1.845,3016.8,3015.0,1.69777273]
[1769189881605,1.845,3016.8,3014.7,1.14967791]
[1769189881606,1.59599407,3016.7,3014.6,0.87188909]
[1769189882009,1.59599407,3016.7,3014.7,0.16606]
[1769189882313,2.81152065,3016.5,3014.6,0.00497215]
[1769189882504,0.16595,3016.6,3014.6,0.00497215]
[1769189882505,7.97652065,3016.4,3014.6,0.00497215]
[1769189882809,2.81152065,3016.3,3014.6,0.00497215]
[1769189884312,2.97746065,3016.8,3014.6,0.00497215]
[1769189884513,2.81152065,3016.6,3015.0,0.86691694]
[1769189884714,5.165,3016.5,3015.1,0.86691694]
[1769189884911,7.97652065,3016.5,3015.3,0.86691694]
[1769189885212,2.81152065,3016.4,3015.2,0.86691694]
[1769189885412,5.165,3016.5,3014.6,2.30945232]
[1769189885413,2.97752065,3015.8,3014.6,0.00497215]
[1769189885620,5.165,3015.7,3014.6,0.00497215]
[1769189885809,2.81152065,3015.6,3014.3,0.00328143]
[1769189886411,2.81152065,3015.6,3014.4,0.43001006]
[1769189886616,5.165,3015.5,3014.5,0.43001006]
[1769189886817,1.845,3015.4,3014.6,0.43001006]
[1769189887016,1.84897536,3015.4,3014.7,0.43001006]
[1769189887218,3.00041488,3015.3,3013.4,2.30448017]
[1769189887517,3.00041488,3015.3,3013.1,2.47062017]
[1769189887712,27.2,3015.2,3013.1,2.47062017]
[1769189888014,0.00497215,3014.5,3013.5,0.16939207]
[1769189888212,5.165,3015.1,3013.5,0.00235194]
[1769189888414,27.20397536,3015.4,3013.8,0.00497215]
[1769189888616,1.84897536,3015.4,3014.0,0.16936207]
[1769189888813,1.84897536,3015.4,3013.8,0.00497215]
[1769189889015,30.20041488,3015.3,3013.8,0.00497215]
[1769189889220,8.16541488,3015.2,3013.8,0.00824422]
[1769189889414,8.16541488,3015.2,3013.8,0.00497215]
[1769189889617,3.00041488,3015.1,3013.5,0.00235194]
[1769189889921,3.00041488,3014.8,3013.5,0.00235194]
[1769189890318,5.166,3014.7,3013.5,0.00235194]
[1769189890518,1.845,3014.7,3013.5,0.00235194]
[1769189890719,1.845,3014.6,3013.7,0.00327207]
[1769189890918,1.845,3014.5,3013.5,0.00235194]
[1769189891124,1.845,3014.5,3013.6,0.00327207]
[1769189891323,0.00497215,3014.4,3013.8,0.00327207]
[1769189891722,0.00497215,3014.4,3014.0,0.00327207]
[1769189891919,0.00497215,3014.4,3013.8,0.00327207]
[1769189892116,13.96950858,3014.3,3013.5,0.00235194]
[1769189892324,13.96950858,3014.3,3013.8,0.00327207]
[1769189892524,1.84997215,3014.4,3013.5,0.00235194]
[1769189894025,3.00041488,3013.9,3011.9,3.09508323]
[1769189894225,3.00041488,3013.6,3011.6,2.30448017]
[1769189894425,1.27037601,3014.3,3011.9,0.16621]
[1769189894426,3.16650488,3014.2,3011.9,0.16621]
[1769189894729,3.00041488,3014.0,3012.0,0.1662]
[1769189894931,3.00041488,3014.0,3012.0,0.17010686]
[1769189895332,3.00041488,3014.0,3012.3,0.16619]
[1769189895533,1.845,3013.9,3012.3,0.16619]
[1769189895832,3.00041488,3014.0,3012.3,0.16619]
[1769189896033,0.00497215,3013.4,3012.0,0.00390686]
[1769189896229,0.00497215,3013.4,3012.2,0.16619]
[1769189896423,0.00497215,3013.4,3012.0,0.00390686]
[1769189897430,3.00538703,3013.4,3012.0,0.00390686]
[1769189897841,1.845,3013.3,3012.0,0.00390686]
[1769189898135,1.845,3013.2,3012.0,0.17010686]
[1769189898331,0.00362873,3013.2,3012.0,0.17010686]
[1769189898629,1.84962873,3013.2,3012.0,0.17010686]
[1769189898831,0.00362873,3013.2,3012.3,0.16619]
[1769189899229,0.00362873,3013.2,3012.4,0.41849328]
[1769189899529,0.00497215,3013.4,3012.5,0.58467328]
[1769189899735,1.846,3014.4,3012.8,0.16616]
[1769189900031,3.00041488,3014.4,3012.9,0.41849328]
[1769189900329,1.846,3014.3,3013.0,0.41849328]
[1769189900634,1.84886328,3014.3,3013.1,0.41849328]
[1769189900828,4.84927816,3014.3,3013.2,0.41849328]
[1769189901029,0.00286328,3014.3,3012.5,0.00497215]
[1769189901234,1.846,3014.2,3012.5,0.17115215]
[1769189901642,4.84641488,3014.2,3012.5,0.17115215]
[1769189901931,4.84641488,3014.2,3012.5,0.00497215]
[1769189901932,3.00041488,3014.1,3012.5,0.00497215]
[1769189902129,3.00041488,3014.0,3012.5,0.00497215]
[1769189903628,1.846,3013.9,3012.5,0.00497215]
[1769189903827,5.168,3013.9,3012.5,0.00497215]
[1769189904534,4.27079089,3013.6,3012.0,0.00390686]
[1769189904725,1.85097215,3013.5,3012.0,0.00390686]
[1769189904930,0.00497215,3013.5,3012.0,0.00390686]
[1769189906536,3.00538703,3013.5,3012.0,0.00390686]
[1769189908235,3.16654488,3013.3,3012.0,0.00390686]
[1769189908439,3.00041488,3013.1,3011.1,0.16625]
[1769189908831,3.00041488,3013.1,3011.2,0.16625]
[1769189909633,3.00041488,3013.1,3011.3,0.16624]
[1769189909838,1.846,3013.2,3011.4,0.16624]
[1769189910535,1.846,3013.2,3011.7,0.16622]
[1769189910840,0.00497215,3013.5,3012.1,0.1662]
[1769189911433,3.00538703,3013.5,3012.1,0.1662]
[1769189912246,0.00497215,3013.5,3012.1,0.1662]
[1769189912540,0.00497215,3013.5,3012.3,0.16619]
[1769189913038,0.00497215,3013.5,3012.4,0.41755633]
[1769189913237,0.00497215,3013.5,3012.5,0.41755633]
[1769189913539,0.00497215,3013.5,3012.6,0.41755633]
[1769189913737,0.00497215,3013.5,3012.7,0.41755633]
[1769189913932,0.00497215,3013.5,3012.8,0.41755633]
[1769189914138,0.00497215,3013.5,3012.9,0.41755633]
[1769189914438,0.00497215,3013.5,3013.0,0.41755633]
[1769189914637,0.00497215,3013.5,3013.1,0.41755633]
[1769189914839,0.00497215,3013.5,3013.2,0.41755633]
[1769189915041,0.00497215,3013.5,3013.3,0.41755633]
[1769189915246,1.846,3013.7,3012.2,1.73107846]
[1769189915545,3.322,3013.9,3013.1,0.00497215]
[1769189915846,3.60248394,3013.8,3012.4,1.15856534]
[1769189916043,3.60248394,3013.8,3012.3,1.15856534]
[1769189916245,3.60248394,3013.8,3012.4,1.15856534]
[1769189917340,3.322,3013.9,3012.4,1.15856534]
[1769189917541,0.00286328,3014.3,3012.9,1.15856534]
[1769189917734,3.323,3015.0,3012.4,2.30693678]
[1769189917735,6.92548394,3015.0,3013.2,1.15856534]
[1769189917936,3.60248394,3014.9,3013.4,1.15856534]
[1769189918136,0.00497215,3013.9,3012.7,2.19658058]
[1769189918441,3.60248394,3014.9,3012.7,0.16616]
[1769189918745,3.60604992,3014.9,3013.0,0.00497215]
[1769189918941,3.76854394,3014.7,3013.0,0.00497215]
[1769189919244,3.60248394,3014.5,3013.0,0.00497215]
[1769189920644,3.76855394,3014.5,3013.0,0.00497215]
[1769189920842,3.60248394,3014.0,3012.7,0.002913]
[1769189922043,3.60248394,3013.8,3011.6,2.88348808]
[1769189922248,3.60248394,3013.6,3011.5,6.33652904]
[1769189922552,3.60248394,3013.6,3011.5,3.45304096]
[1769189922751,3.60248394,3013.6,3011.7,0.16622]
[1769189923048,3.60248394,3013.6,3011.8,0.16622]
[1769189924650,3.60248394,3013.6,3011.7,0.00428274]
[1769189924951,3.76860394,3013.6,3011.7,0.00428274]
[1769189925551,3.76860394,3013.6,3011.7,0.17050274]
[1769189927054,5.169,3013.7,3011.7,0.00428274]
[1769189927055,3.60248394,3013.4,3011.7,0.00428274]
[1769189927255,3.60248394,3013.4,3011.8,0.40543825]
[1769189927452,3.60248394,3013.4,3011.9,0.40543825]
[1769189927650,3.76858394,3014.0,3012.0,0.40543825]
[1769189927855,6.92548394,3013.9,3012.1,0.57162825]
[1769189928050,6.92548394,3013.9,3012.2,0.40543825]
[1769189928252,6.92548394,3013.9,3012.3,0.40543825]
[1769189928448,6.92548394,3013.9,3012.4,0.40543825]
[1769189928653,6.92548394,3013.9,3012.5,0.40543825]
[1769189928856,6.92548394,3013.9,3012.6,0.40543825]
[1769189929155,6.92548394,3013.9,3012.7,0.40543825]
[1769189929358,6.92548394,3013.9,3012.8,0.40543825]
[1769189929655,6.92548394,3013.9,3012.9,0.40543825]
[1769189929858,6.92548394,3013.9,3013.0,0.40543825]
[1769189930053,6.92548394,3013.9,3012.2,0.16619]
[1769189931050,3.323,3013.9,3012.2,2.48789195]
[1769189931759,3.323,3013.9,3011.6,4.0930515]
[1769189931760,3.60248394,3012.6,3010.5,3.45304096]
[1769189931953,8.77148394,3012.5,3010.5,3.45304096]
[1769189932160,3.60248394,3012.5,3010.5,3.45304096]
[1769189932360,5.169,3012.4,3010.6,3.45304096]
[1769189932860,0.00498082,3011.8,3010.6,0.00319404]
[1769189933252,0.00498082,3011.8,3010.7,2.88348808]
[1769189933458,0.00498082,3011.8,3010.6,0.00319404]
[1769189933655,0.00498082,3011.8,3010.7,2.88348808]
[1769189933852,1.846,3011.7,3010.6,0.00319404]
[1769189934058,1.846,3011.7,3010.6,2.88668212]
[1769189934257,1.846,3011.7,3010.7,2.88348808]
[1769189934458,0.00498082,3011.8,3010.7,2.88348808]
[1769189934658,1.846,3011.7,3010.7,2.88348808]
[1769189935055,1.846,3011.7,3010.6,0.00319404]
[1769189935363,1.846,3011.7,3010.0,0.16631]
[1769189935563,1.846,3011.7,3010.2,2.88348808]
[1769189935972,1.846,3011.7,3009.5,3.45304096]
[1769189936164,3.60248394,3011.6,3009.6,2.88348808]
[1769189936459,3.76871394,3011.6,3009.6,0.00373247]
[1769189937661,3.60248394,3011.4,3009.6,0.00373247]
[1769189938164,1.847,3011.3,3010.0,2.88348808]
[1769189938362,1.847,3011.3,3009.9,2.88348808]
[1769189938563,1.847,3011.3,3010.1,2.88348808]
[1769189938757,1.847,3011.3,3009.6,0.17007247]
[1769189938957,5.44948394,3011.3,3009.6,2.88722055]
[1769189939367,5.44948394,3011.3,3009.7,2.88348808]
[1769189939557,5.44948394,3011.3,3009.6,2.88722055]
[1769189939761,3.60248394,3011.2,3009.6,0.00373247]
[1769189940169,3.60248394,3011.2,3009.6,2.88722055]
[1769189940766,3.60248394,3011.2,3009.6,0.00373247]
[1769189941166,3.60248394,3011.2,3009.6,2.88722055]
[1769189941366,5.171,3011.1,3009.6,2.88722055]
[1769189941567,1.847,3011.0,3009.8,2.88348808]
[1769189941768,1.847,3011.0,3009.6,0.00373247]
[1769189942073,1.847,3011.0,3009.8,2.88348808]
[1769189942266,3.60248394,3011.3,3009.8,2.88348808]
[1769189942569,1.847,3011.3,3010.0,2.88348808]
[1769189942768,3.45794991,3011.2,3009.9,2.88348808]
[1769189943068,3.45794991,3011.1,3009.6,0.00373247]
[1769189943276,3.62420991,3011.1,3009.6,0.00373247]
[1769189943669,3.45794991,3010.9,3009.6,0.00373247]
[1769189943873,3.45794991,3010.9,3008.4,3.43384034]
[1769189943874,3.45794991,3010.5,3008.4,3.43384034]
[1769189944176,3.45794991,3010.3,3008.4,3.43384034]
[1769189944882,3.45794991,3010.8,3008.4,3.43638892]
[1769189945074,0.1662,3012.1,3008.8,3.43384034]
[1769189945274,3.45794991,3011.3,3009.1,3.43384034]
[1769189945480,3.45794991,3011.3,3009.2,3.60020034]
[1769189945975,3.45794991,3011.3,3009.3,3.60019034]
[1769189947880,3.45794991,3011.3,3009.4,0.16635]
[1769189948082,3.56213577,3011.4,3009.4,3.84860705]
[1769189948476,3.56213577,3011.4,3009.0,0.00498082]
[1769189948678,3.56213577,3011.1,3009.0,0.00498082]
[1769189948984,3.325,3011.4,3009.2,3.84861705]
[1769189949276,1.848,3011.3,3009.3,3.68225705]
[1769189949478,3.56213577,3011.6,3009.6,3.84858705]
[1769189949676,1.848,3011.3,3009.6,3.84858705]
[1769189949876,3.56213577,3011.6,3009.7,3.84858705]
[1769189950073,5.41013577,3011.6,3009.7,3.84858705]
[1769189950275,3.56213577,3011.5,3009.7,3.68225705]
[1769189950477,3.56213577,3011.5,3009.2,3.68225705]
[1769189951578,3.56213577,3011.5,3009.4,3.84860705]
[1769189952179,17.53164435,3011.4,3009.4,3.84860705]
[1769189952382,3.56213577,3011.4,3009.4,3.84860705]
[1769189952880,3.72838577,3011.2,3009.0,0.00498082]
[1769189954487,3.72843577,3010.4,3008.4,0.00254858]
[1769189954788,3.56213577,3010.2,3008.4,0.00254858]
[1769189955084,3.56564047,3010.2,3008.4,0.00254858]
[1769189955481,0.0035047,3010.2,3008.4,3.68480563]
[1769189955687,0.0035047,3010.2,3008.7,0.16639]
[1769189955884,0.0035047,3010.2,3008.8,3.84863705]
[1769189956088,0.0035047,3010.2,3008.9,0.16637]
[1769189956286,0.0035047,3010.2,3009.0,0.16637]
[1769189956490,0.0035047,3010.2,3009.1,0.16636]
[1769189956889,0.0035047,3010.2,3009.0,3.68225705]
[1769189957084,3.326,3011.3,3009.8,0.16633]
[1769189957285,3.326,3011.3,3009.8,3.84858705]
[1769189957686,3.326,3011.3,3009.9,0.16632]
[1769189957889,3.326,3011.3,3010.1,3.84856705]
[1769189958192,3.3288566,3011.3,3010.1,3.84856705]
[1769189958595,3.3288566,3011.3,3009.3,1.85298082]
[1769189958596,0.0028566,3011.3,3010.2,3.84855705]
[1769189959091,0.0028566,3011.3,3010.3,0.1663]
[1769189959392,1.848,3012.1,3010.5,3.68225705]
[1769189959786,3.72834577,3011.9,3009.9,3.68225705]
[1769189959982,1.848,3011.9,3010.1,3.84856705]
[1769189960187,1.85227371,3011.9,3011.0,0.00498082]
[1769189960382,1.85227371,3011.9,3011.0,0.00805854]
[1769189960984,0.00427371,3011.9,3011.0,0.00805854]
[1769189966499,0.00427371,3011.9,3009.9,3.84857705]
[1769189966699,3.56213577,3011.6,3009.4,3.68225705]
[1769189967003,3.56213577,3011.4,3009.4,3.68225705]
[1769189967404,3.72837577,3011.4,3008.9,3.68225705]
[1769189967595,3.72838577,3011.2,3008.9,3.6862787]
[1769189967795,3.72838577,3011.2,3008.9,0.00402165]
[1769189967995,5.172,3011.5,3008.9,0.00402165]
[1769189967996,3.56213577,3011.0,3008.9,0.00402165]
[1769189968199,3.72839577,3011.0,3008.9,0.00402165]
[1769189968891,0.00498082,3010.3,3008.9,0.00402165]
[1769189969090,5.17798082,3010.3,3008.9,0.00402165]
[1769189969305,3.56213577,3010.2,3008.9,0.00402165]
[1769189969605,3.56213577,3010.2,3008.1,0.16642]
[1769189970699,3.56213577,3010.2,3008.1,0.16937113]
[1769189973596,5.174,3010.1,3008.1,3.57358343]
[1769189973904,3.46859804,3010.0,3008.1,3.57358343]
[1769189974506,3.46859804,3010.0,3008.1,0.00295113]
[1769189974904,3.46859804,3009.8,3008.1,0.00295113]
[1769189976001,4.74384323,3009.3,3006.9,3.4042123]
[1769189976298,3.326,3009.4,3007.5,3.5706623]
[1769189976491,1.848,3009.3,3007.5,3.5706623]
[1769189976892,0.00498082,3008.8,3007.5,3.5706623]
[1769189977098,0.00810859,3008.8,3007.5,3.57390433]
[1769189977493,0.00810859,3008.8,3007.5,3.40745433]
[1769189977700,0.00810859,3008.8,3007.5,3.57390433]
[1769189978304,0.00810859,3008.8,3007.7,3.4042123]
[1769189978901,3.46859804,3009.9,3008.0,3.5706323]
[1769189979099,5.31659804,3009.9,3008.0,3.5706323]
[1769189979295,0.16629,3010.5,3008.3,0.16641]
[1769189979493,5.175,3010.2,3008.3,0.16641]